Cogmind - Beta 10.1 @@@ ROGUE MODE // 2020.09.26 @ 10:30:22 Player: 277 Result: Destroyed by G-67 Veteran with Plasma Rifle Performance ------------- Evolutions (7) 3500 Regions Visited (19) 3800 Robots Destroyed (126) 630 Value Destroyed (4837) 4837 Prototype IDs (48) 960 Alien Tech Used (0) 0 Bonus (1926) 1926 TOTAL SCORE: 15653 Bonus ------- Triggered Max Security 1000 High Alert Combat Kills 418 Follower Combat Kills 339 Aligned with FarCom 300 Met Data Miner 300 Friendly Fire -431 Cogmind --------- Core Integrity 0/1300 Matter 300/300 Energy 100/100 System Corruption 15% Temperature Cool (23) Movement Core (50) Location -3/Testing Parts ------- > --- POWER (2) -------- (None) > --- PROPULSION (6) --- (None) > --- UTILITY (10) ----- Improved Launcher Guidance Computer > --- WEAPON (3) ------- (None) > --- INVENTORY (4) ---- Matter Compressor (250) Peak State ------------ > --- POWER ------------ (None) > --- PROPULSION ------- Myomer Leg Myomer Leg Biometal Leg Q-thruster Impulse Thruster Array > --- UTILITY ---------- Improved Energy Well Experimental Energy Well Advanced Visual Processing Unit Improved Launcher Guidance Computer Improved Armor Integrity Analyzer Hacking Suite Advanced Hacking Suite > --- WEAPON ----------- Proton Cannon Potential Cannon > --- INVENTORY -------- Matter Compressor High-powered Shotgun Coil Gun Improved Proton Missile Launcher [Rating: 111] Favorites ----------- Power Improved Deuterium Engine Engine Improved Deuterium Engine Power Core Micro Fission Core Reactor Antimatter Reactor Propulsion Improved Medium Treads Treads Improved Medium Treads Leg Flexi-carbon Leg Wheel Wheel Hover Unit Combat Gravmag System Flight Unit VTOL Module Utility Visual Processing Unit Device Improved Cooling System Storage Small Storage Unit Processor Visual Processing Unit Hackware Hacking Suite Protection Improved Light Armor Plating Weapon Heavy Plasma Cannon Energy Gun EM Pulse Gun Energy Cannon Heavy Plasma Cannon Ballistic Gun KE Penetrator Ballistic Cannon Mini Assault Cannon Launcher Tesla Bomb Launcher Special Weapon Mining Laser Slashing Weapon Makeshift Axe Special Melee Weapon Datajack Build | -11 -10 -10 -10 -9 -8 -7 -7 -7 -7 -6 -6 -6 -6 -5 -5 -5 -4 -3 -3 ------- Run | Scr Mat Min Exi Min Mat Fac Low Low Dat Pro Fac Low Low Fac Was Fac Fac Res Tes Slots Evolved 14 | . . . . . 4 2 . . . . 2 . . 2 . . 2 2 . Power 1 | . . . . . . 1 . . . . . . . . . . . . . Propulsion 4 | . . . . . 2 1 . . . . . . . . . . . 1 . Utility 8 | . . . . . 2 . . . . . 2 . . 1 . . 2 1 . Weapon 1 | . . . . . . . . . . . . . . 1 . . . . . Parts Attached 170 | 10 10 4 1 . 6 7 12 11 . 34 14 15 5 2 2 6 12 2 17 Power 16 | 1 . . . . . 1 2 1 . 6 2 1 . . . . 2 . . Engine 9 | 1 . . . . . . 1 . . 2 2 1 . . . . 2 . . Core 5 | . . . . . . 1 1 1 . 2 . . . . . . . . . Reactor 2 | . . . . . . . . . . 2 . . . . . . . . . Propulsion 41 | 4 3 1 . . 2 2 . 5 . 7 6 1 . . . 1 4 2 3 Treads 10 | . . . . . . . . . . 1 6 1 . . . . 2 . . Leg 13 | 2 . . . . . . . 1 . 6 . . . . . . 1 1 2 Wheel 2 | 2 . . . . . . . . . . . . . . . . . . . Hover 2 | . . . . . . . . . . . . . . . . 1 1 . . Flight 14 | . 3 1 . . 2 2 . 4 . . . . . . . . . 1 1 Utility 37 | 3 2 . . . 2 3 2 . . 3 5 4 3 1 . 4 3 . 2 Device 17 | 1 . . . . . 3 1 . . 3 4 2 1 1 . . 1 . . Storage 5 | 1 1 . . . . . . . . . . . . . . . 1 . 2 Processor 8 | 1 1 . . . 2 . . . . . . 1 . . . 3 . . . Hackware 3 | . . . . . . . . . . . . . 1 . . 1 1 . . Protection 4 | . . . . . . . 1 . . . 1 1 1 . . . . . . Artifact . | . . . . . . . . . . . . . . . . . . . . Weapon 76 | 2 5 3 1 . 2 1 8 5 . 18 1 9 2 1 2 1 3 . 12 Energy Gun 3 | 1 1 . . . . . . . . . . 1 . . . . . . . Energy Cannon 20 | . . . . . . . 3 1 . 6 1 3 1 . 1 . 1 . 3 Ballistic Gun 8 | 1 . . . . . . . . . . . . . 1 . . . . 6 Ballistic Cannon 5 | . . . . . 1 1 . 1 . 2 . . . . . . . . . Launcher 17 | . 1 2 . . . . 2 2 . 1 . 3 1 . . 1 1 . 3 Special Weapon 13 | . 1 1 1 . . . 3 . . 7 . . . . . . . . . Impact Weapon . | . . . . . . . . . . . . . . . . . . . . Slashing Weapon 8 | . . . . . 1 . . 1 . 2 . 2 . . 1 . 1 . . Piercing Weapon . | . . . . . . . . . . . . . . . . . . . . Special Melee Weapon 2 | . 2 . . . . . . . . . . . . . . . . . . Unidentified Prototypes 6 | . . . . . . . 1 . . 1 . . . . . 1 . . 3 Parts Lost 71 | . . . . . . . 3 8 . 16 . 4 1 . 7 . 14 . 18 Power 10 | . . . . . . . 1 2 . 2 . 1 . . . . 4 . . Propulsion 26 | . . . . . . . 2 5 . 7 . . 1 . 1 . 5 . 5 Utility 16 | . . . . . . . . 1 . 2 . . . . 4 . 3 . 6 Weapon 19 | . . . . . . . . . . 5 . 3 . . 2 . 2 . 7 Highest Loss Streak 18 | . . . . . . . 2 3 . 7 . 2 1 . 6 . 12 . 18 Average Slot Usage (%) 79 | . 94 100 100 100 87 91 91 66 53 57 81 98 98 90 80 66 88 31 48 Engine 7 | . 14 14 14 14 9 7 7 1 . 3 9 12 13 11 11 11 8 . . Core 1 | . . . . . . 3 4 3 . 4 3 . . . . . . . . Treads 12 | . . . . . . . . . . 3 16 33 31 23 19 11 14 . . Leg 2 | . . . . . . . . 4 . 9 8 . . . . . 4 3 7 Flight 9 | . 26 28 28 28 36 32 31 14 23 6 . . . . . . . 3 5 Device 11 | . 3 . . . . 5 5 . . 6 20 26 22 19 18 11 13 . . Storage 3 | . 12 14 14 14 9 7 7 5 . . . . . . . . 3 . 6 Processor 10 | . 9 14 14 14 15 16 15 15 15 8 6 6 6 5 5 11 16 14 11 Hackware 2 | . . . . . . . . . . . . . 3 5 3 2 8 9 7 Protection 2 | . . . . . . . 1 5 . . 3 6 6 5 2 . . . . Energy Gun 1 | . 13 14 14 14 8 . . . . . . . . . . . . . . Energy Cannon 4 | . . . . . . . 4 . . 3 10 9 8 5 8 5 4 . 3 Ballistic Cannon 1 | . . . . . . 7 7 6 7 2 . . . . . . . . . Launcher 2 | . . 4 . . . . . 3 . . . 1 3 5 . 3 7 . 1 Special Weapon 1 | . 1 9 14 14 5 . 1 1 . 1 . . . . . . . . . Slashing Weapon 1 | . . . . . 3 7 . 1 7 1 . . . . 1 5 2 . . Naked Turns . | . . . . . . . . . . . . . . . . . . . . Heaviest Build 64 | 11 10 12 10 10 13 21 23 21 6 48 48 50 53 60 59 48 64 . 39 Greatest Support 150 | 20 20 11 11 11 16 28 28 20 10 40 150 150 148 118 118 58 133 27 50 Greatest Overweight (x) 4 | 2 1 1 . . . . . 3 . 3 1 . . . . . . . 4 Average Overweight (x) . | . . . . . . . . . . . . . . . . . . . . Largest Inventory Capacity 8 | 6 6 6 6 6 6 6 6 6 4 4 4 4 4 4 4 4 8 4 4 Average Capacity 4 | 4 5 6 6 6 6 6 6 5 4 4 4 4 4 4 4 4 6 4 4 Most Carried 7 | 3 6 6 6 6 6 6 6 6 3 4 4 4 4 3 3 4 7 4 4 Average Carried 4 | 1 5 5 5 6 4 5 5 5 3 2 3 3 3 3 2 3 4 4 3 Final Capacity 6 | 4 6 6 6 6 6 6 6 4 4 4 4 4 4 4 4 4 4 4 4 Final Carried 6 | 3 6 6 6 6 5 5 6 3 3 2 4 4 4 3 2 4 4 4 1 Class Distribution -------------------- 34% | Scavenger-Mutant 27% | Mutant 17% | Hacker-Mutant 11% | Derelict-Mutant 7% | Sprinter Dominant Class ---------------- Mutant | -10/Materials Mutant | -10/Mines Mutant | -10/Exiles Mutant | -9/Mines Mutant | -8/Materials Sprinter | -7/Factory Sprinter | -7/Lower Caves Mutant | -7/Lower Caves Scavenger-Mutant | -7/Data Miner Scavenger-Mutant | -6/Proximity Caves Scavenger-Mutant | -6/Factory Scavenger-Mutant | -6/Lower Caves Scavenger-Mutant | -6/Lower Caves Scavenger-Skirmisher | -5/Factory Scavenger-Mutant | -5/Waste Derelict-Mutant | -5/Factory Hacker-Mutant | -4/Factory Hacker-Mutant | -3/Research Hacker-Mutant | -3/Testing Resources | -11 -10 -10 -10 -9 -8 -7 -7 -7 -7 -6 -6 -6 -6 -5 -5 -5 -4 -3 -3 ----------- Run | Scr Mat Min Exi Min Mat Fac Low Low Dat Pro Fac Low Low Fac Was Fac Fac Res Tes Matter Collected 3403 | 325 30 416 64 . . 121 246 292 . 842 65 300 193 . . . 221 . 288 Remotely . | . . . . . . . . . . . . . . . . . . . . Salvage Created 5805 | 196 89 22 . . . 121 312 313 . 706 65 968 963 . . . 1632 . 418 Parts 238 | 13 5 9 . . . 9 7 16 . 22 5 30 32 . . . 76 . 14 Haulers Intercepted 1 | . . . . . . . . . . . . . . . . . 1 . . Recyclers Shooed 2 | 1 . . . . . . . . . . . . . . . . 1 . . Parts Field Recycled . | . . . . . . . . . . . . . . . . . . . . Retrieved Matter . | . . . . . . . . . . . . . . . . . . . . Parts Self-Destructed 71 | . . . . . . . 12 9 . 27 . 14 9 . . . . . . Prevented 29 | . . . . . . . 2 . . . . 7 20 . . . . . . Kills | -11 -10 -10 -10 -9 -8 -7 -7 -7 -7 -6 -6 -6 -6 -5 -5 -5 -4 -3 -3 ------- Run | Scr Mat Min Exi Min Mat Fac Low Low Dat Pro Fac Low Low Fac Was Fac Fac Res Tes Combat Hostiles Destroyed 97 | . 2 6 . . . 1 9 13 . 15 1 15 15 . . . 14 . 6 Melee 12 | . . . . . . 1 . 1 . 4 . 4 . . . . 2 . . Guns 5 | . . . . . . . . . . . . 2 . . . . . . 3 Cannons 26 | . . . . . . . 5 1 . 10 1 4 3 . . . 1 . 1 AOE 44 | . 2 6 . . . . 3 11 . 1 . 5 9 . . . 6 . 1 Classes Destroyed 14 | 3 2 1 . . . 1 2 . . 2 . . . . . . 2 . 1 Worker 3 | 2 . . . . . . . . . . . . . . . . 1 . . Builder 10 | . . . . . . . . . . . . . . . . . 10 . . Tunneler 6 | 3 . . . . . 2 . . . . . . . . . . 1 . . Hauler 1 | . . . . . . . . . . . . . . . . . 1 . . Recycler 4 | 1 . . . . . . . . . . . . . . . . 3 . . Watcher 3 | . 1 . . . . . . . . . . . . . . . 2 . . Swarmer 26 | . . 6 . . . . 2 9 . 1 . 3 1 . . . 4 . . Saboteur 1 | . . . . . . . . . . . . . . . . . . . 1 Grunt 39 | . 2 . . . . . 4 3 . 7 . 10 9 . . . 4 . . Brawler 9 | . . . . . . . 1 . . 3 . 2 2 . . . . . 1 Duelist 2 | . . . . . . . . . . 1 . . . . . . . . 1 Sentry 6 | . . . . . . 1 1 . . 2 1 . 1 . . . . . . Hunter 11 | . . . . . . . 1 1 . . . . 2 . . . 4 . 3 Programmer 3 | . . . . . . . . . . 1 . . . . . . 2 . . Thug 1 | . . . . . . . . 1 . . . . . . . . . . . Savage 1 | . . . . . . . . . . . . 1 . . . . . . . Best Kill Streak 18 | 3 2 3 . . . 2 3 4 . 3 1 4 7 . . . 18 . 3 Combat Bots Only 8 | . 2 3 . . . 1 3 4 . 3 1 4 7 . . . 8 . 3 Max Kills in Single Turn 6 | 1 1 2 . . . 1 1 3 . 1 1 2 4 . . . 6 . 1 Gunslinging . | . . . . . . . . . . . . . . . . . . . . Exploded 4 | . 1 2 . . . . 1 2 . 1 . 2 4 . . . 3 . 1 Melee 1 | . . . . . . 1 . 1 . 1 . 1 . . . . 1 . . Uniques/NPCs Destroyed . | . . . . . . . . . . . . . . . . . . . . Combat | -11 -10 -10 -10 -9 -8 -7 -7 -7 -7 -6 -6 -6 -6 -5 -5 -5 -4 -3 -3 -------- Run | Scr Mat Min Exi Min Mat Fac Low Low Dat Pro Fac Low Low Fac Was Fac Fac Res Tes Damage Taken 11609 | 36 50 31 . . 27 38 310 740 . 2144 48 1077 646 . 615 . 2807 375 2665 Core 3005 | 36 . 7 . . 13 . 50 145 . 473 23 126 23 . 127 . 680 228 1074 Absorbed by Shields . | . . . . . . . . . . . . . . . . . . . . Core Remaining (%) 67 | 85 . . . 82 97 . . . . 4 . . 79 . . 87 40 . . Volleys Fired 311 | 15 7 5 . . 22 . 25 26 . 68 4 34 36 . 13 . 19 . 37 Largest 2 | 2 1 1 . . 1 . 2 2 . 2 2 2 2 . 2 . 2 . 2 Hottest 243 | 60 100 100 . . 100 . 104 117 . 143 150 170 170 . 170 . 92 . 243 Shots Fired 408 | 30 7 5 . . 22 . 46 29 . 76 7 47 50 . 23 1 25 . 40 Gun 87 | 30 3 . . . 9 . . . . . . 16 . . 2 . . . 27 Cannon 211 | . . . . . . . 42 18 . 61 7 18 29 . 21 1 7 . 7 Launcher 84 | . 3 4 . . . . 4 11 . 4 . 13 21 . . . 18 . 6 Special 26 | . 1 1 . . 13 . . . . 11 . . . . . . . . . Kinetic 117 | 15 . . . . . . 21 15 . 37 . . . . 2 . . . 27 Thermal 138 | . 1 1 . . 13 . . . . 30 7 34 29 . 21 1 . . 1 Explosive 26 | . 3 4 . . . . 4 11 . 4 . . . . . . . . . Electromagnetic 122 | 15 3 . . . 9 . 21 3 . . . 13 21 . . . 25 . 12 Robot Hit Streak 40 | 4 3 3 . . 3 . 7 15 . 9 6 40 6 . . . 12 . 11 Robot Miss Streak 4 | 2 1 1 . . . . 1 1 . 4 . 1 1 . . . 1 . 4 Penetration Max 2 | . . . . . . . . . . . . . . . . . . . 2 Secondary Targets . | . . . . . . . . . . . . . . . . . . . . Shots Hit Robots 276 | 18 8 4 . . 1 5 32 27 . 54 5 42 28 . . . 26 . 26 Core Hits 239 | 7 6 6 . . . 4 12 39 . 21 2 44 28 . . . 49 . 21 Critical Hits 6 | . . . . . . . . . . 3 . . . . . . 1 . 2 Critical Kills 2 | . . . . . . . . . . 1 . . . . . . . . 1 Critical Parts Destroyed 4 | . . . . . . . . . . 2 . . . . . . 1 . 1 Melee Attacks 65 | . 6 . . . 6 7 . 4 . 12 . 10 . . 1 . 19 . . Impact . | . . . . . . . . . . . . . . . . . . . . Slashing 59 | . . . . . 6 7 . 4 . 12 . 10 . . 1 . 19 . . Piercing . | . . . . . . . . . . . . . . . . . . . . Sneak Attacks 14 | . 3 . . . . 2 . . . 9 . . . . . . . . . Combat Hostiles 1 | . . . . . . . . . . 1 . . . . . . . . . Follow-up Attacks . | . . . . . . . . . . . . . . . . . . . . Damage Inflicted 14874 | 267 196 354 . . 12 308 771 1561 . 2194 145 1886 1737 . . . 3310 . 2133 Guns 1629 | 238 46 . . . 12 . . . . . . 409 . . . . . . 924 Cannons 3771 | . . . . . . . 597 388 . 1150 145 413 674 . . . 199 . 205 Explosions 7319 | 29 150 354 . . . . 174 912 . 133 . 756 1063 . . . 2744 . 1004 Melee 2088 | . . . . . . 308 . 261 . 866 . 304 . . . . 349 . . Ramming 22 | . . . . . . . . . . . . 4 . . . . 18 . . Kinetic 2201 | 74 . . . . . . 342 294 . 567 . . . . . . . . 924 Thermal 3040 | 29 . . . . . . . . . 628 145 871 881 . . . 172 . 314 Explosive 1908 | . 150 354 . . . . 174 912 . 133 . . . . . . 185 . . Electromagnetic 5615 | 164 46 . . . 12 . 255 94 . . . 707 856 . . . 2586 . 895 Impact . | . . . . . . . . . . . . . . . . . . . . Slashing 2088 | . . . . . . 308 . 261 . 866 . 304 . . . . 349 . . Piercing . | . . . . . . . . . . . . . . . . . . . . Highest Corruption 38 | . . . . . . . . . . 8 . . . . 38 38 12 1 15 Average Corruption 10 | . . . . . . . . . . 7 . . . . 17 38 2 1 3 Corruption Purged . | . . . . . . . . . . . . . . . . . . . . Effects 69 | . . . . . . . . . . 37 . . . . 12 9 7 . 4 Message Errors 18 | . . . . . . . . . . 6 . . . . 4 4 3 . 1 Matter Fused 11 | . . . . . . . . . . 9 . . . . 1 1 . . . Heat Flow Errors 7 | . . . . . . . . . . 4 . . . . 3 . . . . Energy Discharges 7 | . . . . . . . . . . 4 . . . . 1 . 1 . 1 Parts Rejected 1 | . . . . . . . . . . . . . . . . . . . 1 Data Loss (minor) 5 | . . . . . . . . . . 4 . . . . . . 1 . . Data Loss (major) 1 | . . . . . . . . . . 1 . . . . . . . . . Misfires 3 | . . . . . . . . . . 1 . . . . 1 1 . . . Alerts 1 | . . . . . . . . . . . . . . . . 1 . . . Misdirections 1 | . . . . . . . . . . . . . . . . 1 . . . Targeting Errors 9 | . . . . . . . . . . 5 . . . . 1 1 1 . 1 Weapon Failures 5 | . . . . . . . . . . 3 . . . . 1 . 1 . . Overload Shots . | . . . . . . . . . . . . . . . . . . . . Overflow Damage 742 | . . 8 . . . 58 31 107 . 259 . 8 10 . . . 203 . 58 Projectiles 146 | . . . . . . . 16 14 . 18 . 8 10 . . . 80 . . Explosions 207 | . . 8 . . . . 15 5 . 6 . . . . . . 115 . 58 Melee 389 | . . . . . . 58 . 88 . 235 . . . . . . 8 . . Knockbacks 11 | . . . . . . . 2 . . 9 . . . . . . . . . Impact . | . . . . . . . . . . . . . . . . . . . . Kinetic 11 | . . . . . . . 2 . . 9 . . . . . . . . . Secondary . | . . . . . . . . . . . . . . . . . . . . Self-Inflicted Damage 420 | 36 . . . . . . . 67 . 72 . 28 38 . . . 130 . 49 Shots 22 | 1 . . . . . . . 3 . 3 . 6 5 . . . 3 . 1 Rammed 8 | . . . . . . . . . . . . 2 . . . . 5 . 1 Targets Rammed 9 | . . . . . . . . . . . . 3 . . . . 5 . 1 Kicked . | . . . . . . . . . . . . . . . . . . . . Crushed 1 | . . . . . . . . . . . . 1 . . . . . . . Highest Temperature 336 | 12 28 28 . . 32 30 314 21 . 336 . 228 . . 223 . 14 . 85 Average Temperature 101 | 12 11 14 . . 12 11 123 12 . 155 . 137 . . 98 . 5 . 31 Received Heat Transfer 1872 | . 27 . . . 18 18 45 99 . 576 6 393 81 . . . 168 27 414 Effects 5 | . . . . . . . . . . 5 . . . . . . . . . Shutdowns 2 | . . . . . . . . . . 2 . . . . . . . . . Energy Bleed 1 | . . . . . . . . . . 1 . . . . . . . . . Matter Decay 1 | . . . . . . . . . . 1 . . . . . . . . . Short Circuit 1 | . . . . . . . . . . 1 . . . . . . . . . Siege Activations . | . . . . . . . . . . . . . . . . . . . . Robots Corrupted 10 | . . . . . . . 1 . . . . . 1 . . . 7 . 1 Combat Hostiles 8 | . . . . . . . 1 . . . . . 1 . . . 5 . 1 Parts Fried 43 | 2 1 . . . . . . . . . . 2 2 . . . 34 . 2 Impact Corruptions . | . . . . . . . . . . . . . . . . . . . . Robots Melted 3 | . . . . . . . . . . . . 1 2 . . . . . . Combat Hostiles 2 | . . . . . . . . . . . . . 2 . . . . . . Parts Melted 8 | . . . . . . . . . . . . 5 3 . . . . . . Heat Transferred 4544 | 50 . . . . . . . . . 895 224 1685 1300 . . . 100 . 290 Parts Sabotaged . | . . . . . . . . . . . . . . . . . . . . Parts Stolen . | . . . . . . . . . . . . . . . . . . . . Parts Stripped . | . . . . . . . . . . . . . . . . . . . . Power Chain Reactions 8 | 1 . . . . . . . . . . . 2 2 . . . 3 . . Missiles Intercepted . | . . . . . . . . . . . . . . . . . . . . Alert | -11 -10 -10 -10 -9 -8 -7 -7 -7 -7 -6 -6 -6 -6 -5 -5 -5 -4 -3 -3 ------- Run | Scr Mat Min Exi Min Mat Fac Low Low Dat Pro Fac Low Low Fac Was Fac Fac Res Tes Peak Influence 1683 | 30 147 197 . . 60 101 . . . . 68 . . 88 36 19 506 170 1683 Initial 155 | . 19 57 . . . . . . . . . . . 88 30 4 9 155 16 Average 185 | 13 62 125 . . 12 43 . . . . 39 . . 88 20 9 176 116 1632 Maximum Alert Level 5 | . . . . . . . . . . . . . . . . . 2 . 5 Low Security (%) 83 | 100 100 100 . 100 100 100 . . . . 100 . . 100 100 100 56 100 . Level 1 8 | . . . . . . . . . . . . . . . . . 37 . . Level 2 1 | . . . . . . . . . . . . . . . . . 6 . . Level 3 . | . . . . . . . . . . . . . . . . . . . . Level 4 . | . . . . . . . . . . . . . . . . . . . . Level 5 . | . . . . . . . . . . . . . . . . . . . . High Security . | . . . . . . . . . . . . . . . . . . . . Max Security 6 | . . . . . . . . . . . . . . . . . . . 99 Squads Dispatched 20 | . 1 . . . . . . . . . . . 1 . . . 5 1 12 Investigation . | . . . . . . . . . . . . . . . . . . . . Extermination 2 | . . . . . . . . . . . . . . . . . 1 1 . Reinforcement 5 | . 1 . . . . . . . . . . . . . . . 4 . . Assault 13 | . . . . . . . . . . . . . 1 . . . . . 12 Garrison . | . . . . . . . . . . . . . . . . . . . . Intercept . | . . . . . . . . . . . . . . . . . . . . Construction Impeded 1 | . . . . . . . . . . . . . . . . . 1 . . Haulers Reinforced 1 | . . . . . . . . . . . . . . . . . 1 . . Stealth | -11 -10 -10 -10 -9 -8 -7 -7 -7 -7 -6 -6 -6 -6 -5 -5 -5 -4 -3 -3 --------- Run | Scr Mat Min Exi Min Mat Fac Low Low Dat Pro Fac Low Low Fac Was Fac Fac Res Tes Distress Signals 3 | . . . . . . . . . . . . 1 . . . . 2 . . Communications Jammed . | . . . . . . . . . . . . . . . . . . . . Distress Signals . | . . . . . . . . . . . . . . . . . . . . Times Spotted 219 | . 8 6 . 17 5 1 15 17 . 27 1 26 20 . 5 . 29 5 37 Peak Tracking Total 25 | . 2 3 . 20 5 1 4 6 . 6 1 4 8 . 5 . 8 4 25 Tactical Retreats 23 | . 2 . . . 1 . 3 . . 5 . 5 1 . . . 3 . 3 Traps | -11 -10 -10 -10 -9 -8 -7 -7 -7 -7 -6 -6 -6 -6 -5 -5 -5 -4 -3 -3 ------- Run | Scr Mat Min Exi Min Mat Fac Low Low Dat Pro Fac Low Low Fac Was Fac Fac Res Tes Traps Triggered 1 | . . . . . . . . . . . . . . 1 . . . . . Indirectly . | . . . . . . . . . . . . . . . . . . . . Trap Hack Attempts . | . . . . . . . . . . . . . . . . . . . . Triggered . | . . . . . . . . . . . . . . . . . . . . Disarmed . | . . . . . . . . . . . . . . . . . . . . Reprogrammed . | . . . . . . . . . . . . . . . . . . . . Reused . | . . . . . . . . . . . . . . . . . . . . Traps Extracted . | . . . . . . . . . . . . . . . . . . . . Installed . | . . . . . . . . . . . . . . . . . . . . Triggered 3 | . . . . . . . 3 . . . . . . . . . . . . Machines | -11 -10 -10 -10 -9 -8 -7 -7 -7 -7 -6 -6 -6 -6 -5 -5 -5 -4 -3 -3 ---------- Run | Scr Mat Min Exi Min Mat Fac Low Low Dat Pro Fac Low Low Fac Was Fac Fac Res Tes Machines Disabled 13 | . . . . . . . . 3 . . . . 1 . . 1 4 . 4 Max in Single Turn 4 | . . . . . . . . 1 . . . . 1 . . 1 1 . 4 Garrison Access 1 | . . . . . . . . . . . . . . 1 . . . . . Machines Sabotaged . | . . . . . . . . . . . . . . . . . . . . Garrisons Compromised . | . . . . . . . . . . . . . . . . . . . . Overloaded Fab Kills . | . . . . . . . . . . . . . . . . . . . . Fab Network Shutdowns . | . . . . . . . . . . . . . . . . . . . . Hacking | -11 -10 -10 -10 -9 -8 -7 -7 -7 -7 -6 -6 -6 -6 -5 -5 -5 -4 -3 -3 --------- Run | Scr Mat Min Exi Min Mat Fac Low Low Dat Pro Fac Low Low Fac Was Fac Fac Res Tes Machines Accessed 31 | . 5 1 1 . 3 4 . 3 4 . 2 1 . 1 . 3 3 . . Terminals 16 | . 5 . . . 3 1 . 1 . . 1 . . . . 2 3 . . Fabricators 1 | . . . . . . . . . . . . . . . . 1 . . . Repair Stations 2 | . . . . . . 2 . . . . . . . . . . . . . Recycling Units 1 | . . . . . . 1 . . . . . . . . . . . . . Scanalyzers 1 | . . . . . . . . . . . 1 . . . . . . . . Garrison Access 1 | . . . . . . . . . . . . . . 1 . . . . . Total Hacks 105 | . 14 1 1 . 15 10 . 16 26 . 9 1 . 1 . 5 6 . . Successful 80 | . 9 1 1 . 11 4 . 15 26 . 6 1 . 1 . 1 4 . . Failed 25 | . 5 . . . 4 6 . 1 . . 3 . . . . 4 2 . . Catastrophic 4 | . . . . . . 2 . . . . 1 . . . . 1 . . . Database Lockouts . | . . . . . . . . . . . . . . . . . . . . Manual 31 | . 10 . 1 . 10 2 . 1 . . 5 . . . . . 2 . . Terminals 56 | . 14 . . . 15 3 . 9 . . 6 . . . . 3 6 . . Fabricators 2 | . . . . . . . . . . . . . . . . 2 . . . Repair Stations 5 | . . . . . . 5 . . . . . . . . . . . . . Recycling Units 2 | . . . . . . 2 . . . . . . . . . . . . . Scanalyzers 3 | . . . . . . . . . . . 3 . . . . . . . . Garrison Access 1 | . . . . . . . . . . . . . . 1 . . . . . Terminal Hacks 56 | . 3 1 1 . 6 . . 15 26 . 1 1 . . . . 2 . . Record 26 | . . . . . . . . 14 11 . . . . . . . 1 . . Part Schematic 7 | . . . . . . . . . 7 . . . . . . . . . . Robot Schematic 5 | . . . . . . . . . 5 . . . . . . . . . . Prototype ID Bank 7 | . 1 . . . 1 . . . 3 . 1 . . . . . 1 . . Open Door 3 | . . 1 . . . . . 1 . . . 1 . . . . . . . Level Access Points 1 | . . . . . 1 . . . . . . . . . . . . . . Terminal Index 2 | . 1 . . . 1 . . . . . . . . . . . . . . Unreport Threat 1 | . . . . . 1 . . . . . . . . . . . . . . Locate Traps 1 | . . . . . 1 . . . . . . . . . . . . . . Zone Layout 2 | . 1 . . . 1 . . . . . . . . . . . . . . EX-Prototype ID Bank 1 | . . . 1 . . . . . . . . . . . . . . . . Fabricator Hacks 1 | . . . . . . . . . . . . . . . . 1 . . . Load Schematic 1 | . . . . . . . . . . . . . . . . 1 . . . Repair Station Hacks 4 | . . . . . . 4 . . . . . . . . . . . . . Scan Component 2 | . . . . . . 2 . . . . . . . . . . . . . Repair 2 | . . . . . . 2 . . . . . . . . . . . . . Recycling Unit Hacks . | . . . . . . . . . . . . . . . . . . . . Scanalyzer 2 | . . . . . . . . . . . 2 . . . . . . . . Insert Component 1 | . . . . . . . . . . . 1 . . . . . . . . Analyze 1 | . . . . . . . . . . . 1 . . . . . . . . Garrison Access Hacks 1 | . . . . . . . . . . . . . . 1 . . . . . Seal Access 1 | . . . . . . . . . . . . . . 1 . . . . . Unauthorized Hacks 16 | . 6 . . . 5 . . . . . 3 . . . . . 2 . . Terminals 16 | . 6 . . . 5 . . . . . 3 . . . . . 2 . . Track 5 | . 3 . . . . . . . . . 1 . . . . . 1 . . Assimilate 3 | . 1 . . . 2 . . . . . . . . . . . . . . Botnet 5 | . 1 . . . 2 . . . . . 1 . . . . . 1 . . Operators 3 | . 1 . . . 1 . . . . . 1 . . . . . . . . Fabricators . | . . . . . . . . . . . . . . . . . . . . Repair Stations . | . . . . . . . . . . . . . . . . . . . . Recycling Units . | . . . . . . . . . . . . . . . . . . . . Scanalyzers . | . . . . . . . . . . . . . . . . . . . . Garrison Access . | . . . . . . . . . . . . . . . . . . . . Data Cores Recovered . | . . . . . . . . . . . . . . . . . . . . Used . | . . . . . . . . . . . . . . . . . . . . Hacking Detections 21 | . 5 . . . 3 4 . 1 . . 2 . . . . 3 3 . . Full Trace Events . | . . . . . . . . . . . . . . . . . . . . Feedback Events . | . . . . . . . . . . . . . . . . . . . . Feedback Blocked . | . . . . . . . . . . . . . . . . . . . . Robot Schematics Acquired 5 | . . . . . . . . . 5 . . . . . . . . . . Robots Built . | . . . . . . . . . . . . . . . . . . . . Matter . | . . . . . . . . . . . . . . . . . . . . Time . | . . . . . . . . . . . . . . . . . . . . Total Robot Build Rating . | . . . . . . . . . . . . . . . . . . . . Part Schematics Acquired 8 | . . . . . . . . . 7 . 1 . . . . . . . . Parts Built . | . . . . . . . . . . . . . . . . . . . . Matter . | . . . . . . . . . . . . . . . . . . . . Time . | . . . . . . . . . . . . . . . . . . . . Total Part Build Rating . | . . . . . . . . . . . . . . . . . . . . Parts Repaired 2 | . . . . . . 2 . . . . . . . . . . . . . Time 45 | . . . . . . 45 . . . . . . . . . . . . . Parts Recycled . | . . . . . . . . . . . . . . . . . . . . Recycled Matter . | . . . . . . . . . . . . . . . . . . . . Retrieved Matter . | . . . . . . . . . . . . . . . . . . . . Retrieved Components . | . . . . . . . . . . . . . . . . . . . . Parts Scanalyzed 1 | . . . . . . . . . . . 1 . . . . . . . . Part Schematics Acquired 1 | . . . . . . . . . . . 1 . . . . . . . . Parts Damaged . | . . . . . . . . . . . . . . . . . . . . Bothacking | -11 -10 -10 -10 -9 -8 -7 -7 -7 -7 -6 -6 -6 -6 -5 -5 -5 -4 -3 -3 ------------ Run | Scr Mat Min Exi Min Mat Fac Low Low Dat Pro Fac Low Low Fac Was Fac Fac Res Tes Used RIF Installer . | . . . . . . . . . . . . . . . . . . . . Robots Hacked 3 | . 3 . . . . . . . . . . . . . . . . . . Non-combat 3 | . 3 . . . . . . . . . . . . . . . . . . Combat . | . . . . . . . . . . . . . . . . . . . . Robot Hacks Applied 3 | . 3 . . . . . . . . . . . . . . . . . . parse_system 1 | . 1 . . . . . . . . . . . . . . . . . . find_recycling 1 | . 1 . . . . . . . . . . . . . . . . . . check_alert 1 | . 1 . . . . . . . . . . . . . . . . . . Relay Couplers Released . | . . . . . . . . . . . . . . . . . . . . Robots Rewired 2 | . . . . . . . . . . . . . 2 . . . . . . Allies Hacked . | . . . . . . . . . . . . . . . . . . . . Hacks Repelled . | . . . . . . . . . . . . . . . . . . . . Allies | -11 -10 -10 -10 -9 -8 -7 -7 -7 -7 -6 -6 -6 -6 -5 -5 -5 -4 -3 -3 -------- Run | Scr Mat Min Exi Min Mat Fac Low Low Dat Pro Fac Low Low Fac Was Fac Fac Res Tes Total Allies 11 | . 1 . . . 1 . . 2 . 5 . . 2 . . . . . . Largest Group 2 | . 1 . . . 1 . . 2 . 2 . . 2 . . . . . . Highest-Rated Group 94 | . 10 . . . 10 . . 62 . 94 . . 59 . . . . . . Highest-Rated Ally 94 | . 10 . . . 10 . . 31 . 94 . . 30 . . . . . . Total Orders 4 | . . . . . . . . . . . 2 2 . . . . . . . EXPLORE 2 | . . . . . . . . . . . 1 1 . . . . . . . RETURN 2 | . . . . . . . . . . . 1 1 . . . . . . . Ally Attacks 66 | . . . . . . . . 13 . 25 . . 28 . . . . . . Total Damage 1266 | . . . . . . . . 189 . 666 . . 411 . . . . . . Kills 9 | . . . . . . . . 3 . 4 . . 2 . . . . . . Allies Corrupted 1 | . . . . . . . . . . . . . 1 . . . . . . Allies Melted 1 | . . . . . . . . . . . . 1 . . . . . . . Field Lobotomies 4 | . . . . . . . . . . 4 . . . . . . . . . Intel | -11 -10 -10 -10 -9 -8 -7 -7 -7 -7 -6 -6 -6 -6 -5 -5 -5 -4 -3 -3 ------- Run | Scr Mat Min Exi Min Mat Fac Low Low Dat Pro Fac Low Low Fac Was Fac Fac Res Tes Robot Analysis Total . | . . . . . . . . . . . . . . . . . . . . Derelict Logs Recovered 8 | . . 1 . 1 . . 2 . . 1 . 2 1 . . . . . . Drone Launches 4 | . . . . . . . . . . . 2 2 . . . . . . . Drone Recoveries 2 | . . . . . . . . . . . 2 . . . . . . . . Exploration | -11 -10 -10 -10 -9 -8 -7 -7 -7 -7 -6 -6 -6 -6 -5 -5 -5 -4 -3 -3 ------------- Run | Scr Mat Min Exi Min Mat Fac Low Low Dat Pro Fac Low Low Fac Was Fac Fac Res Tes Turns Passed 7913 | 133 222 173 137 18 311 229 516 658 34 990 341 1256 706 131 235 202 812 578 231 Spaces Moved 6731 | 59 424 321 363 43 278 472 904 685 87 683 209 662 359 81 122 120 393 327 139 Core 153 | 18 . . . . . . . 60 . 14 . . . . . . 21 16 24 Treads 1865 | . . . . . . . . . . 46 103 662 359 81 122 120 372 . . Legs 642 | 37 . . . . . . . 119 . 323 106 . . . . . . . 57 Wheels 14 | 4 10 . . . . . . . . . . . . . . . . . . Hover . | . . . . . . . . . . . . . . . . . . . . Flight 4057 | . 414 321 363 43 278 472 904 506 87 300 . . . . . . . 311 58 Fastest Speed 28 | 50 37 37 37 37 34 28 28 34 37 34 120 160 160 160 160 160 50 40 47 Average Speed 82 | 118 38 46 37 37 34 31 30 69 37 102 139 160 160 160 160 160 154 43 84 Slowest Speed 290 | 150 120 117 37 37 34 34 34 200 37 290 160 160 160 160 160 160 160 50 250 Overloaded Moves . | . . . . . . . . . . . . . . . . . . . . Propulsion Burnouts . | . . . . . . . . . . . . . . . . . . . . Robots Hopped 22 | . 3 . . 1 5 . 1 . . . . . . . . . . 12 . Cave-ins Triggered 2 | . . . . . . . . . . . . . . . 2 . . . . Exploration Rate (%) 45 | 5 52 76 80 18 23 12 95 90 73 81 8 94 65 2 86 5 14 9 15 Regions Visited 19 Branch Regions 10 Pre-discovered Areas 3 | . . 1 . 1 . . . . 1 . . . . . . . . . . Known Exits Taken 5 | . . . . . 1 . . . . 1 1 . 1 . . 1 . . . Unknown Exits Taken 12 | 1 1 1 1 1 . 1 1 1 1 . . 1 . . . . 1 1 . Scrap Searched 19 | . . 2 . . . . 3 3 . 1 . 9 1 . . . . . . Spaces Dug 51 | . 1 . . . 19 2 . . . 3 1 . . . 20 . 5 . . Terrain Destroyed 323 | . 23 32 . . 19 2 25 46 . 41 1 14 5 . 21 . 85 . 9 Melee 14 | . . . . . 6 2 . . . . . . . . 1 . 5 . . Projectile 59 | . 1 1 . . 13 . 6 . . 14 1 1 2 . 20 . . . . AOE 250 | . 22 31 . . . . 19 46 . 27 . 13 3 . . . 80 . 9 Terrain Rammed . | . . . . . . . . . . . . . . . . . . . . Walls Destroyed . | . . . . . . . . . . . . . . . . . . . . Machines Disabled . | . . . . . . . . . . . . . . . . . . . . Actions | -11 -10 -10 -10 -9 -8 -7 -7 -7 -7 -6 -6 -6 -6 -5 -5 -5 -4 -3 -3 --------- Run | Scr Mat Min Exi Min Mat Fac Low Low Dat Pro Fac Low Low Fac Was Fac Fac Res Tes Total 8453 | 88 464 336 365 43 430 542 1090 831 88 851 250 787 437 83 137 127 552 747 205 Wait 1078 | . 6 3 . 2 120 49 146 100 2 47 11 55 2 . . . 96 431 8 Move 6672 | 58 417 320 362 40 267 471 901 684 86 682 208 661 358 81 121 119 393 304 139 Hop 20 | . 3 . . 1 5 . 1 . . . . . . . . . . 10 . Pick Up 35 | 2 7 2 1 . 2 3 2 . . 2 3 4 1 . . 2 3 . 1 Fast Attach 87 | 10 4 . . . 3 6 2 6 . 18 10 2 1 1 . 6 6 2 10 Attach 27 | . 1 . . . 2 . 1 3 . 7 1 3 . 1 1 . 2 . 5 Detach 9 | 1 . . . . . . . 2 . 4 2 . . . . . . . . Swap 56 | . 5 4 1 . 1 1 9 2 . 9 3 10 4 . 1 . 4 . 2 Drop 54 | 2 8 2 1 . 2 5 3 4 . 2 8 5 4 . . . 6 . 2 Fire 311 | 15 7 5 . . 22 . 25 26 . 68 4 34 36 . 13 . 19 . 37 Melee 65 | . 6 . . . 6 7 . 4 . 12 . 10 . . 1 . 19 . . Ram 5 | . . . . . . . . . . . . . . . . . 4 . 1 Kick . | . . . . . . . . . . . . . . . . . . . . Crush 3 | . . . . . . . . . . . . 3 . . . . . . . Escape Stasis . | . . . . . . . . . . . . . . . . . . . . Rewire 31 | . . . . . . . . . . . . . 31 . . . . . . Trap . | . . . . . . . . . . . . . . . . . . . . Miscellaneous . | . . . . . . . . . . . . . . . . . . . . Route ------- -11/Scrapyard -10/Materials (discovered 2 exits: [*Mat] / *Min) -10/Mines (discovered 2 exits: [*Mat] / *Exi) -10/Exiles (discovered 2 exits: [*Min x2]) -9/Mines -8/Materials (discovered 3 exits: *Fac x3) -7/Factory -7/Lower Caves -7/Lower Caves (discovered 2 exits: *Fac / *Dat) -7/Data Miner -6/Proximity Caves -6/Factory (discovered 6 exits: Fac x4 / *Low x2) -6/Lower Caves -6/Lower Caves -5/Factory (discovered 3 exits: Fac x2 / Upp) -5/Waste -5/Factory -4/Factory -3/Research -3/Testing History --------- Turn | Location | Event 6 | -11/Scrapyard | Discovered new exit (range 15) 134 | -11/Scrapyard | Entered Materials 248 | -10/Materials | Discovered new exit (range 14) 316 | -10/Materials | Build established: Mutant 349 | -10/Materials | Discovered new exit (range 17) 356 | -10/Materials | Entered Mines 358 | -10/Mines | Met a Derelict bent on vengeance 405 | -10/Mines | Discovered new exit (range 5) 414 | -10/Mines | Met a Derelict who couldn't figure out how to use a Trap Extractor 522 | -10/Mines | Deemed a non-threat by the Exiles lab entrance 523 | -10/Mines | Discovered new exit (range 5) 529 | -10/Mines | Entered Exiles 536 | -10/Exiles | Discovered new exit (range 17) 540 | -10/Exiles | Met 8R-AWN 547 | -10/Exiles | Met EX-HEX 566 | -10/Exiles | Met EX-DEC 574 | -10/Exiles | Visited The Gauntlet 604 | -10/Exiles | Met EX-BIN 610 | -10/Exiles | Aligned with FarCom system 611 | -10/Exiles | Given EX-Vault access code 626 | -10/Exiles | Opened EX-Vault 630 | -10/Exiles | Found Field Lobotomy Kit 638 | -10/Exiles | Warned to stay clear of 0b10 Research branches 661 | -10/Exiles | Discovered new exit (range 15) 666 | -10/Exiles | Left Exiles lab with Field Lobotomy Kit 666 | -10/Exiles | Entered Mines 668 | -9/Mines | Learned location of Recycling (-8) 668 | -9/Mines | Discovered new exit (range 8) 676 | -9/Mines | Assembled infested the area 684 | -9/Mines | Entered Materials 684 | -8/Materials | Evolved 4 slots: Propulsion x2, Utility x2 872 | -8/Materials | Identified exit to Factory 995 | -8/Materials | Entered Factory 995 | -7/Factory | Evolved 2 slots: Power x1, Propulsion x1 1067 | -7/Factory | Repaired Grenade Launcher 1127 | -7/Factory | Discovered new exit (range 4) 1207 | -7/Factory | Repaired VTOL Module 1224 | -7/Factory | Entered Lower Caves 1282 | -7/Lower Caves | Encountered a Warlord checkpoint 1417 | -7/Lower Caves | Build established: Sprinter 1542 | -7/Lower Caves | Learned 8 Factory zone layouts 1587 | -7/Lower Caves | Learned Factory terminal intel 1663 | -7/Lower Caves | Attracted the attention of an 0b10 checkpoint 1706 | -7/Lower Caves | Discovered new exit (range 6) 1740 | -7/Lower Caves | Entered another Lower Caves area 1765 | -7/Lower Caves | Discovered new exit (range 14) 1965 | -7/Lower Caves | A Commander dispatched an escort 1966 | -7/Lower Caves | Build established: Mutant 1979 | -7/Lower Caves | Learned Armory security intel 2063 | -7/Lower Caves | Attracted the attention of an 0b10 base 2094 | -7/Lower Caves | Learned location of 1 exit from Proximity Caves 2094 | -7/Lower Caves | Learned location of 1 exit from Factory 2094 | -7/Lower Caves | Learned 8 Research zone layouts 2094 | -7/Lower Caves | Learned Extension trap positions 2094 | -7/Lower Caves | Learned Armory trap positions 2094 | -7/Lower Caves | Learned Armory terminal intel 2103 | -7/Lower Caves | Lost 3 parts (3n) 2278 | -7/Lower Caves | Lost 3 parts (1p1n1u) 2368 | -7/Lower Caves | Discovered new exit (range 10) 2398 | -7/Lower Caves | Entered Data Miner 2398 | -7/Data Miner | Discovered new exit (range 6) 2405 | -7/Data Miner | Met Data Miner 2414 | -7/Data Miner | Learned location of Section 7 (-2) 2414 | -7/Data Miner | Acquired the access code to Warlord's prototype stash 2423 | -7/Data Miner | Received God Mode back door access code from Data Miner 2432 | -7/Data Miner | Entered Proximity Caves 2433 | -6/Proximity Caves | Identified exit to Factory 2504 | -6/Proximity Caves | Escorted by Enhanced Grunt 2635 | -6/Proximity Caves | Build established: Scavenger-Mutant 2656 | -6/Proximity Caves | Core integrity fell below 50% 2685 | -6/Proximity Caves | Lost 7 parts (1p3n2u1w) 2830 | -6/Proximity Caves | Spotted B-75 Beast 2840 | -6/Proximity Caves | Assimilated B-75 Beast with FLK Orb 2870 | -6/Proximity Caves | Assimilated G-67 Veteran with FLK Orb 2875 | -6/Proximity Caves | Assimilated G-50 Soldier with FLK Orb 2881 | -6/Proximity Caves | Core integrity fell below 20% 2906 | -6/Proximity Caves | Assimilated G-67 Veteran with FLK Orb 2909 | -6/Proximity Caves | Lost 3 parts (2n1w) 2992 | -6/Proximity Caves | Attracted the attention of an 0b10 checkpoint 3071 | -6/Proximity Caves | Lost 6 parts (1p2n3w) 3422 | -6/Proximity Caves | Entered Factory 3422 | -6/Factory | Evolved 2 slots: Utility x2 3423 | -6/Factory | Identified exit to Factory 3423 | -6/Factory | Identified exit to Lower Caves 3426 | -6/Factory | Loaded intel: 20 terminal locations 3727 | -6/Factory | Discovered exit to Lower Caves (range 6) 3763 | -6/Factory | Entered Lower Caves 3770 | -6/Lower Caves | Learned 8 Factory zone layouts 4044 | -6/Lower Caves | Learned location of 1 exit from Factory 4789 | -6/Lower Caves | Build established: Derelict-Mutant 4883 | -6/Lower Caves | Discovered new exit (range 4) 5019 | -6/Lower Caves | Entered another Lower Caves area 5158 | -6/Lower Caves | Learned location of 1 exit from Proximity Caves 5168 | -6/Lower Caves | Attracted the attention of an 0b10 outpost 5206 | -6/Lower Caves | Destroyed 7 combat bots 5342 | -6/Lower Caves | Encountered a Warlord checkpoint 5645 | -6/Lower Caves | Discovered exit to Factory (range 11) 5725 | -6/Lower Caves | Entered Factory 5725 | -5/Factory | Evolved 2 slots: Utility x1, Weapon x1 5726 | -5/Factory | Identified exit to Upper Caves 5727 | -5/Factory | Identified exit to Factory 5856 | -5/Factory | Sucked down chute 5856 | -5/Factory | Entered Waste 5871 | -5/Waste | EMP discharged 5963 | -5/Waste | Spotted C-40 Crusher 5971 | -5/Waste | EMP discharged 5971 | -5/Waste | System corruption reached 10% 5971 | -5/Waste | Spotted C-40 Crusher 5992 | -5/Waste | Crushed by falling debris 6005 | -5/Waste | Crushed by falling debris 6005 | -5/Waste | System corruption reached 30% 6025 | -5/Waste | Spotted C-40 Crusher 6036 | -5/Waste | Lost 6 parts (1n4u1w) 6052 | -5/Waste | Spotted C-40 Crusher 6057 | -5/Waste | Spotted C-40 Crusher 6058 | -5/Waste | Crushed by Compactor (1 part destroyed, 1 dropped) 6060 | -5/Waste | Discovered new exit (range 20) 6071 | -5/Waste | EMP discharged 6091 | -5/Waste | Entered Factory 6154 | -5/Factory | Found Prototype Launcher 6154 | -5/Factory | Identified Tesla Bomb Launcher 6157 | -5/Factory | Found Tesla Bomb Launcher 6184 | -5/Factory | Discovered exit to Factory (range 11) 6293 | -5/Factory | Entered another Factory area 6293 | -4/Factory | Evolved 2 slots: Utility x2 6575 | -4/Factory | Spotted B-86 Titan 6774 | -4/Factory | Build established: Hacker-Mutant 6778 | -4/Factory | Destroyed 8 combat bots 7089 | -4/Factory | System corruption reached 10% 7098 | -4/Factory | Core integrity fell below 50% 7098 | -4/Factory | Discovered new exit (range 11) 7105 | -4/Factory | Entered Research 7105 | -3/Research | Evolved 2 slots: Propulsion x1, Utility x1 7125 | -3/Research | Lost 12 parts (2p5n3u2w) 7674 | -3/Research | Discovered new exit (range 16) 7683 | -3/Research | Entered Testing 7684 | -3/Testing | Maximum security lockdown engaged 7803 | -3/Testing | Found Prototype Energy Cannon 7803 | -3/Testing | Identified Potential Cannon 7826 | -3/Testing | Spotted Striker 7826 | -3/Testing | Spotted Striker 7877 | -3/Testing | System corruption reached 10% 7889 | -3/Testing | Core integrity fell below 50% 7910 | -3/Testing | Core integrity fell below 20% 7914 | -3/Testing | Destroyed by G-67 Veteran with Plasma Rifle Last Messages --------------- 07886_ P-80 Master resets G-67 Veteran, system corruption cleaned. 07886_ Slug penetrates G-67 Veteran. 07891_ Hpw. Shotgun destroyed. 07892_ Slug penetrates G-67 Veteran. 07892_ Coil Gun destroyed. 07894_ Adv. Hacking Suite destroyed. 07895_ E-15 Imp destroyed. 07895_ System corrupted: Proton Cannon targeting data glitched. 07897_ P-80 Master resets G-67 Veteran, system corruption cleaned. 07898_ System corrupted: Proton Cannon rejected. 07902_ Acquired Tesla Bomb Launcher. 07902_ Tesla Bomb Launcher destroyed. 07904_ Acquired Coil Gun. 07911_ Slug penetrates B-74 Champion. 07911_ B-74 Champion suffers critical hit. 07911_ B-74 Champion destroyed. 07912_ Coil Gun destroyed. 07912_ Exp. Energy Well destroyed. 07913_ Slammed into P-80 Master. 07914_ Acquired 60 matter. Map ----- +----------------------------------------------------+ | ????????# ######?# "" ""#??? | | ????????# #?#### [ ! ###??? | | ????????# #????# #????? | | ???????????# ##########+#####????? | | ???????????# #?????? | | ???????????# #?????? | | ???????????# #?????? | | ???????????# #?????? | | ???????????##"T####"###### #?????# | | ????????????#""#? ???# #???? | | ????????????#### """ """?# #??? " | | ???????????????# """ """ # #??? " | | ???????????????# """ """ # #?? " | | ???????????????# # #? " | | ???????????????# # #? % | | ???????????????# # s # "%"% | | ???????????????# # ss# ? | | ???????????????########### ""#/### | | ?????????????????????????# % | | ?????????????????????????# | | ?????????????????????????# | | ??????????##############?# | | ??????????# # [ #?# """"""+### | | ??????????#g gi #% [### " | | ??????????##gggg]g %=%* # """ "" | | ??????????#g@g g # i%##### """ "" | | ??????????#p"gb # [#???? """ "" | | ??????????### g #######???? | | ????????????######?????????? """ """ | | ???????????????????????????? """T""" | | ?????????????????????????????######## | | ????????????????????????????????????? | | ????????????????????????????????????? | | ????????????????????????????????????? | | ????????????????????????????????????? | | ????????????????????????????????????? | | ????????????????????????????????????? | | ????????????????????????????????????? | | ????????????????????????????????????? | | ????????????????????????????????????? | | ????????????????????????????????????? | | ????????????????????????????????????? | | ????????????????????????????????????? | | ????????????????????????????????????? | | ????????????????????????????????????? | | ????????????????????????????????????? | | ????????????????????????????????????? | | ????????????????????????????????????? | | ????????????????????????????????????? | | ????????????????????????????????????? | +----------------------------------------------------+ Best States ------------- Heat Dissipation 117 Energy Generation 34 Energy Capacity 1700 Matter Stores 300 Matter Capacity 300 Sight Range 20 Terrain Scan Range 16 Terrain Scan Density 60 ECM Strength 2 Jamming Range 12 Base Temperature (-) 150 Heat Shielding 100 Armor Coverage 225 Evasion (%) 64 Targeting Accuracy 14 Launcher Accuracy 60 Armor Integrity Analysis 50 Recoil Reduction 5 Particle Charging 25 Offensive Hacking 24 Item Schematics ----------------- Combat Drone Bay | -7/Data Miner | Free Lgt. Regenerative Plating | -7/Data Miner | Free Triangulator | -7/Data Miner | Free Exp. Terrain Scanner | -7/Data Miner | Free Exp. Terrain Scan Processor | -7/Data Miner | Free Exp. Targeting Computer | -7/Data Miner | Free Mni. Smartbomb Launcher | -7/Data Miner | Free Rnf. Deuterium Engine | -6/Factory | Scanalyzed Robot Schematics ------------------ S-27 Virus | -7/Data Miner | Free G-50 Soldier | -7/Data Miner | Free P-70 Sage | -7/Data Miner | Free I-36 Angel | -7/Data Miner | Free I-47 Archangel | -7/Data Miner | Free Fabricated ------------ Nothing Alien Tech Used ----------------- None Achievements -------------- Explorer Challenges ------------ None Game ------ Seed DefenseSalvageFilter Manual? 0 Play Time 02:22:28 Cumulative 213.1 hours Start 2020.09.25 @ 13:51:14 End 2020.09.26 @ 10:30:22 Sessions 5 Manual Loads 0 Difficulty Rogue Special Mode None Game No. 154 Rogue 154 Adventurer 0 Explorer 0 Win Type - Total 1 Types 1/0/0/0/0/0/0/0/0 Lore% 52 Gallery% 68 Achievement% 48 Wizard Run 0 Options --------- ASCII 0 Keyboard 0 Movement Numpad Keybinds 0 Fullscreen 1 Font 18/SmallcapsGlow Map View 76x50 Tactical HUD 1 Map Filters NONE Filters NONE Steam 1 RUN: 0544a1cf-529d-4311-94f1-e7992c2b1517